[Event "49th Rilton Cup 2019-20"]
[Site "Stockholm"]
[Date "2019.12.28"]
[Round "2.17"]
[White "Bellon Lopez, Juan Manuel"]
[Black "Keinanen, Toivo"]
[Result "1/2-1/2"]
[ECO "D58"]
[WhiteElo "2353"]
[BlackElo "2447"]
[Annotator "ChessBase"]
[PlyCount "145"]
[EventDate "2019.12.27"]
[EventType "swiss"]
[EventCountry "SWE"]
[SourceTitle "playchess.com"]
[Source "ChessBase"]
[SourceQuality "1"]
[TimeControl "40/5400+30:1800+30"]

1. d4 {[%emt 0:00:00]} d5 {[%emt 0:02:00]} 2. Nf3 {[%emt 0:00:45]} Nf6 {[%emt 0:00:32]} 3. c4 {[%emt 0:00:20]} e6 {[%emt 0:00:05]} 4. Nc3 {[%emt 0:00:15]} Be7 {[%emt 0:00:56]} 5. Bg5 {[%emt 0:00:22]} h6 {[%emt 0:00:09]} 6. Bh4 {[%emt 0:00:24]} O-O {[%emt 0:00:07]} 7. e3 {[%emt 0:00:12]} b6 {[%emt 0:00:06]} 8. Qc2 {[%emt 0:00:12]} Ba6 {[%emt 0:04:00]} 9. Bxf6 {[%emt 0:04:11]} Bxf6 10. cxd5 Bxf1 {[%emt 0:01:00]} 11. Kxf1 {[%emt 0:05:32]} exd5 {[%emt 0:00:03]} 12. h4 {[%emt 0:01:32]} Qd7 {[%emt 0:09:44]} 13. Ne2 {[%emt 0:11:21]} c5 {[%emt 0:03:09]} 14. Rd1 {[%emt 0:03:38]} Nc6 {[%emt 0:04:47]} 15. dxc5 {[%emt 0:04:54]} Rfd8 {[%emt 0:06:58]} 16. cxb6 {[%emt 0:09:15]} axb6 {[%emt 0:00:45]} 17. a3 {[%emt 0:03:25]} Rac8 {[%emt 0:01:11]} 18. Qb1 {[%emt 0:08:19]} Qg4 {[%emt 0:05:48]} 19. Nfd4 {[%emt 0:10:09]} Nxd4 {[%emt 0:04:26]} 20. Nxd4 {[%emt 0:00:49]} Bxh4 {[%emt 0:01:07]} 21. g3 {[%emt 0:06:51]} Bf6 {[%emt 0:05:48]} 22. Kg2 {[%emt 0:00:07]} h5 {[%emt 0:05:28]} 23. Rd2 {[%emt 0:05:35]} Rc4 {[%emt 0:07:07]} 24. b3 {[%emt 0:02:26]} Rc3 {[%emt 0:04:22]} 25. Ne2 {[%emt 0:02:23]} Rc5 {[%emt 0:06:56]} 26. Nf4 {[%emt 0:02:20]} d4 {[%emt 0:11:38]} 27. exd4 {[%emt 0:03:49]} Rc3 {[%emt 0:01:12]} 28. Qd1 {[%emt 0:04:28]} Qxd1 {[%emt 0:02:29]} 29. Rhxd1 {[%emt 0:00:01]} Rxb3 {[%emt 0:03:15]} 30. Nxh5 {[%emt 0:02:00]} Be7 {[%emt 0:01:36]} 31. Rd3 {[%emt 0:00:26]} Rxa3 {[%emt 0:00:23]} 32. Rxa3 {[%emt 0:00:05]} Bxa3 {[%emt 0:00:02]} 33. Rb1 {[%emt 0:00:22]} Rxd4 {[%emt 0:02:56]} 34. Rxb6 {[%emt 0:00:05]} Rd2 {[%emt 0:00:00]} 35. Rb8+ {[%emt 0:01:30]} Kh7 {[%emt 0:00:13]} 36. Rb7 {[%emt 0:01:47]} Bc5 {[%emt 0:03:52]} 37. Rxf7 {[%emt 0:00:09]} Kg6 {[%emt 0:00:05]} 38. Rf3 {[%emt 0:00:06]} Kxh5 {[%emt 0:01:43]} 39. Rf5+ {[%emt 0:00:09]} Kg6 {[%emt 0:01:26]} 40. Rxc5 {[%emt 0:00:05]} Kf6 {[%emt 0:00:10]} 41. Kf3 {[%emt 0:30:23]} Rb2 {[%emt 0:30:31]} 42. Rd5 {[%emt 0:04:32]} Ra2 {[%emt 0:01:47]} 43. Ke3 {[%emt 0:00:22]} Rb2 {[%emt 0:00:00]} 44. f3 {[%emt 0:00:00]} Rb6 {[%emt 0:00:00]} 45. Ke4 {[%emt 0:00:00]} Re6+ {[%emt 0:00:00]} 46. Kf4 {[%emt 0:00:00]} Rb6 {[%emt 0:00:00]} 47. Kg4 {[%emt 0:00:00]} Kg6 {[%emt 0:00:00]} 48. f4 {[%emt 0:00:00]} Ra6 {[%emt 0:00:00]} 49. Kh4 {[%emt 0:00:00]} Rb6 {[%emt 0:00:00]} 50. g4 {[%emt 0:00:00]} Kh7 {[%emt 0:00:00]} 51. Re5 {[%emt 0:00:00]} Rb4 {[%emt 0:00:00]} 52. f5 {[%emt 0:00:00]} Rb1 {[%emt 0:00:00]} 53. Re3 {[%emt 0:00:00]} Rb5 {[%emt 0:00:00]} 54. Kg5 {[%emt 0:00:00]} Rb7 {[%emt 0:00:00]} 55. Kf4 {[%emt 0:00:00]} Kg8 {[%emt 0:02:00]} 56. g5 {[%emt 0:00:00]} Kf8 {[%emt 0:01:57]} 57. Kg4 {[%emt 0:00:00]} Rb4+ {[%emt 0:03:06]} 58. Kh5 Kf7 59. Ra3 {[%emt 0:00:00]} g6+ {[%emt 0:00:19]} 60. fxg6+ {[%emt 0:00:00]} Kg7 {[%emt 0:00:05]} 61. Ra7+ {[%emt 0:00:24]} Kg8 {[%emt 0:00:35]} 62. g7 {[%emt 0:02:30]} Rb6 {[%emt 0:00:40]} 63. Re7 {[%emt 0:00:46]} Ra6 {[%emt 0:01:21]} 64. Rb7 {[%emt 0:02:55]} Rc6 {[%emt 0:00:05]} 65. Rb8+ {[%emt 0:04:51]} Kxg7 {[%emt 0:00:12]} 66. Rb7+ {[%emt 0:00:04]} Kg8 {[%emt 0:00:08]} 67. Rd7 {[%emt 0:00:02]} Ra6 {[%emt 0:00:43]} 68. g6 {[%emt 0:00:22]} Ra1 {[%emt 0:00:19]} 69. g7 {[%emt 0:00:07]} Rh1+ {[%emt 0:00:12]} 70. Kg5 {[%emt 0:00:05]} Rg1+ {[%emt 0:00:04]} 71. Kf4 {[%emt 0:00:03]} Rxg7 {[%emt 0:00:09]} 72. Rxg7+ {[%emt 0:00:04]} Kxg7 {[%emt 0:00:06]} 73. Ke4 1/2-1/2

[Event "49th Rilton Cup 2019-20"]
[Site "Stockholm"]
[Date "2019.12.28"]
[Round "2.18"]
[White "Kucuksari, Kaan"]
[Black "Savanovic, Aleksandar"]
[Result "1-0"]
[ECO "E04"]
[WhiteElo "2337"]
[BlackElo "2420"]
[Annotator "ChessBase"]
[PlyCount "119"]
[EventDate "2019.12.27"]
[EventType "swiss"]
[EventCountry "SWE"]
[SourceTitle "playchess.com"]
[Source "ChessBase"]
[SourceQuality "1"]
[TimeControl "40/5400+30:1800+30"]

1. d4 {[%emt 0:00:00]} d5 {[%emt 0:00:00]} 2. Nf3 {[%emt 0:00:00]} Nf6 {[%emt 0:00:00]} 3. c4 {[%emt 0:00:00]} e6 {[%emt 0:00:00]} 4. g3 {[%emt 0:00:00]} dxc4 {[%emt 0:00:27]} 5. Bg2 {[%emt 0:00:00]} a6 {[%emt 0:01:59]} 6. O-O {[%emt 0:00:00]} Nc6 {[%emt 0:00:14]} 7. e3 {[%emt 0:00:06]} Bd7 {[%emt 0:00:17]} 8. Qe2 {[%emt 0:01:14]} Bd6 {[%emt 0:00:41]} 9. Qxc4 {[%emt 0:00:32]} O-O {[%emt 0:00:08]} 10. Rd1 {[%emt 0:00:20]} Qe7 {[%emt 0:01:07]} 11. Nc3 {[%emt 0:15:05]} b5 {[%emt 0:10:28]} 12. Qe2 {[%emt 0:05:00]} b4 {[%emt 0:11:59]} 13. Nb1 {[%emt 0:00:43]} Na5 {[%emt 0:00:20]} 14. e4 {[%emt 0:07:46]} Bb5 {[%emt 0:05:47]} 15. Qe1 {[%emt 0:08:12]} e5 {[%emt 0:00:07]} 16. dxe5 {[%emt 0:05:41]} Bxe5 {[%emt 0:00:06]} 17. Nxe5 {[%emt 0:00:19]} Qxe5 {[%emt 0:00:07]} 18. Qxb4 {[%emt 0:00:25]} Qh5 {[%emt 0:20:07]} 19. Nc3 {[%emt 0:09:25]} Rad8 {[%emt 0:05:36]} 20. Bf4 {[%emt 0:19:46]} Nc6 {[%emt 0:01:56]} 21. Qa3 {[%emt 0:00:07]} Nd4 {[%emt 0:13:47]} 22. Rd2 {[%emt 0:07:23]} c5 {[%emt 0:08:16]} 23. Re1 {[%emt 0:09:44]} Rfe8 {[%emt 0:06:46]} 24. h3 {[%emt 0:03:13]} Bd7 {[%emt 0:03:40]} 25. h4 {[%emt 0:03:42]} Bg4 {[%emt 0:00:55]} 26. Be3 {[%emt 0:02:44]} Bf3 {[%emt 0:03:47]} 27. Bxd4 {[%emt 0:00:35]} Bxg2 {[%emt 0:00:02]} 28. Kxg2 {[%emt 0:01:03]} cxd4 {[%emt 0:00:02]} 29. Red1 {[%emt 0:00:47]} Nxe4 {[%emt 0:05:03]} 30. Rxd4 {[%emt 0:00:33]} Rxd4 31. Rxd4 {[%emt 0:00:01]} Nxc3 {[%emt 0:00:44]} 32. Qxc3 {[%emt 0:00:02]} h6 {[%emt 0:00:46]} 33. Qd3 {[%emt 0:01:27]} Qa5 {[%emt 0:00:23]} 34. a3 {[%emt 0:00:16]} Rf8 {[%emt 0:00:46]} 35. Rd6 {[%emt 0:00:36]} Ra8 {[%emt 0:00:05]} 36. b4 {[%emt 0:00:35]} Qa4 {[%emt 0:00:05]} 37. Rd7 {[%emt 0:00:23]} Qc6+ {[%emt 0:00:46]} 38. Qd5 {[%emt 0:00:38]} Qxd5+ {[%emt 0:00:18]} 39. Rxd5 {[%emt 0:00:02]} Rc8 {[%emt 0:00:39]} 40. Rd6 {[%emt 0:00:30]} a5 {[%emt 0:00:05]} 41. bxa5 {[%emt 0:31:00]} Rc3 {[%emt 0:30:27]} 42. a4 {[%emt 0:00:15]} Rc4 {[%emt 0:00:06]} 43. a6 {[%emt 0:00:00]} Rxa4 {[%emt 0:00:00]} 44. h5 {[%emt 0:00:00]} Kf8 {[%emt 0:00:00]} 45. Kf3 {[%emt 0:00:00]} Ke7 {[%emt 0:00:00]} 46. Rb6 {[%emt 0:00:00]} Ra5 {[%emt 0:00:00]} 47. Kg4 {[%emt 0:00:00]} Rg5+ {[%emt 0:00:00]} 48. Kh4 {[%emt 0:00:00]} Rf5 {[%emt 0:00:00]} 49. f4 {[%emt 0:00:00]} Ra5 {[%emt 0:00:00]} 50. g4 {[%emt 0:00:00]} Ra4 {[%emt 0:00:00]} 51. Kg3 {[%emt 0:02:45]} Ra3+ {[%emt 0:00:00]} 52. Kg2 {[%emt 0:01:31]} Ra4 {[%emt 0:00:00]} 53. Kf3 {[%emt 0:00:04]} Ra3+ {[%emt 0:00:00]} 54. Ke4 {[%emt 0:00:28]} Ra4+ {[%emt 0:00:00]} 55. Ke5 {[%emt 0:00:24]} Ra5+ {[%emt 0:00:00]} 56. Ke4 {[%emt 0:00:52]} Ra4+ {[%emt 0:00:00]} 57. Kd5 {[%emt 0:01:34]} Rxf4 {[%emt 0:00:00]} 58. Ke5 {[%emt 0:00:33]} Ra4 {[%emt 0:00:00]} 59. Rb7+ {[%emt 0:00:04]} Kd8 {[%emt 0:00:00]} 60. a7 {[%emt 0:00:03]} 1-0

[Event "49th Rilton Cup 2019-20"]
[Site "Stockholm"]
[Date "2019.12.28"]
[Round "2.19"]
[White "Leenhouts, Koen"]
[Black "Sidhant, Mohapatra"]
[Result "1/2-1/2"]
[ECO "A36"]
[WhiteElo "2415"]
[BlackElo "2338"]
[Annotator "NA"]
[PlyCount "94"]
[EventDate "2019.12.27"]
[EventType "swiss"]
[EventCountry "SWE"]
[SourceTitle "playchess.com"]
[Source "ChessBase"]
[SourceQuality "1"]
[TimeControl "40/5400+30:1800+30"]

1. c4 {[%emt 0:00:00]} c5 {[%emt 0:02:46]} 2. g3 {[%emt 0:00:00]} Nc6 {[%emt 0:00:08]} 3. Bg2 {[%emt 0:00:00]} g6 {[%emt 0:00:40]} 4. Nc3 {[%emt 0:01:10]} Bg7 {[%emt 0:10:36]} 5. a3 {[%emt 0:00:11]} d6 {[%emt 0:00:45]} 6. Rb1 {[%emt 0:02:30]} Bf5 {[%emt 0:03:03]} 7. d3 {[%emt 0:00:54]} Qd7 {[%emt 0:00:37]} 8. Bd2 {[%emt 0:00:52]} b6 {[%emt 0:01:04]} 9. b4 {[%emt 0:03:59]} Rc8 {[%emt 0:00:12]} 10. b5 {[%emt 0:02:49]} Nd8 {[%emt 0:01:30]} 11. h3 {[%emt 0:06:56]} e5 {[%emt 0:01:44]} 12. Qc1 {[%emt 0:11:05]} h6 {[%emt 0:02:13]} 13. a4 {[%emt 0:02:58]} Ne7 {[%emt 0:01:15]} 14. Nf3 {[%emt 0:05:30]} Be6 {[%emt 0:02:14]} 15. h4 {[%emt 0:06:44]} d5 {[%emt 0:05:13]} 16. cxd5 {[%emt 0:00:55]} Nxd5 {[%emt 0:00:09]} 17. O-O {[%emt 0:00:59]} f6 {[%emt 0:02:32]} 18. a5 {[%emt 0:04:55]} Nf7 {[%emt 0:00:38]} 19. Na4 {[%emt 0:07:51]} Rb8 {[%emt 0:03:51]} 20. axb6 {[%emt 0:12:18]} axb6 {[%emt 0:00:13]} 21. Nb2 {[%emt 0:00:05]} O-O {[%emt 0:03:03]} 22. Nc4 {[%emt 0:00:12]} Kh7 {[%emt 0:04:43]} 23. Qc2 {[%emt 0:01:00]} f5 {[%emt 0:04:28]} 24. e4 {[%emt 0:04:18]} Nc7 {[%emt 0:01:31]} 25. h5 {[%emt 0:02:24]} g5 {[%emt 0:01:24]} 26. Bc3 {[%emt 0:00:25]} Bxc4 {[%emt 0:03:36]} 27. dxc4 {[%emt 0:00:17]} f4 {[%emt 0:00:05]} 28. Rfd1 {[%emt 0:03:59]} Qg4 {[%emt 0:00:52]} 29. Nh2 {[%emt 0:02:23]} Qxh5 {[%emt 0:00:19]} 30. Rd7 {[%emt 0:01:55]} Ne8 {[%emt 0:01:19]} 31. Bf3 {[%emt 0:00:26]} Qg6 {[%emt 0:00:08]} 32. Bg4 {[%emt 0:00:24]} Nfd6 {[%emt 0:06:35]} 33. Bxe5 {[%emt 0:01:17]} fxg3 {[%emt 0:04:33]} 34. fxg3 {[%emt 0:00:49]} Kh8 {[%emt 0:01:04]} 35. Bf5 {[%emt 0:08:30]} Nxf5 {[%emt 0:00:09]} 36. exf5 {[%emt 0:00:08]} Rxf5 {[%emt 0:00:04]} 37. Bxb8 {[%emt 0:00:29]} Rf1+ {[%emt 0:00:06]} 38. Rxf1 {[%emt 0:00:13]} Qxc2 {[%emt 0:00:03]} 39. Be5 {[%emt 0:00:30]} Kg8 {[%emt 0:02:29]} 40. Bxg7 {[%emt 0:06:40]} Nxg7 {[%emt 0:00:07]} 41. Ng4 {[%emt 0:30:18]} Ne6 {[%emt 0:35:09]} 42. Ra1 {[%emt 0:00:00]} Nf8 {[%emt 0:00:00]} 43. Nxh6+ {[%emt 0:00:00]} Kh8 {[%emt 0:00:00]} 44. Rf7 {[%emt 0:00:00]} Qc3 {[%emt 0:00:00]} 45. Rxf8+ {[%emt 0:00:00]} Kg7 {[%emt 0:00:00]} 46. Raf1 {[%emt 0:00:00]} Qxg3+ {[%emt 0:00:00]} 47. Kh1 {[%emt 0:00:00]} Qh3+ {[%emt 0:00:00]} 1/2-1/2

[Event "49th Rilton Cup 2019-20"]
[Site "Stockholm"]
[Date "2019.12.28"]
[Round "2.20"]
[White "Rathanvel, V S"]
[Black "Larsen, Karsten"]
[Result "1-0"]
[ECO "C78"]
[WhiteElo "2411"]
[BlackElo "2278"]
[Annotator "NA"]
[PlyCount "73"]
[EventDate "2019.12.27"]
[EventType "swiss"]
[EventCountry "SWE"]
[SourceTitle "playchess.com"]
[Source "ChessBase"]
[SourceQuality "1"]
[TimeControl "40/5400+30:1800+30"]

1. e4 {[%emt 0:00:00]} e5 {[%emt 0:00:00]} 2. Nf3 {[%emt 0:00:00]} Nc6 {[%emt 0:00:00]} 3. Bb5 {[%emt 0:00:37]} a6 {[%emt 0:00:02]} 4. Ba4 {[%emt 0:00:05]} Nf6 {[%emt 0:00:25]} 5. O-O {[%emt 0:01:08]} b5 {[%emt 0:00:16]} 6. Bb3 {[%emt 0:00:09]} Bc5 {[%emt 0:00:05]} 7. a4 {[%emt 0:00:18]} Rb8 {[%emt 0:00:21]} 8. c3 {[%emt 0:00:28]} d6 {[%emt 0:00:07]} 9. d4 {[%emt 0:00:10]} Bb6 {[%emt 0:00:05]} 10. axb5 {[%emt 0:00:35]} axb5 {[%emt 0:00:06]} 11. Na3 {[%emt 0:00:20]} O-O {[%emt 0:00:38]} 12. Nxb5 {[%emt 0:00:07]} Bg4 {[%emt 0:00:22]} 13. Bc2 {[%emt 0:01:14]} Bxf3 {[%emt 0:24:44]} 14. gxf3 {[%emt 0:00:09]} Nh5 {[%emt 0:00:15]} 15. Be3 {[%emt 0:21:58]} Qf6 {[%emt 0:10:27]} 16. Kh1 {[%emt 0:02:59]} Ne7 {[%emt 0:04:51]} 17. Rg1 {[%emt 0:09:00]} h6 {[%emt 0:11:17]} 18. Na3 {[%emt 0:14:42]} Ng6 {[%emt 0:07:52]} 19. Nc4 {[%emt 0:01:29]} Nh4 {[%emt 0:13:13]} 20. Nxb6 {[%emt 0:03:56]} cxb6 {[%emt 0:00:30]} 21. Bd3 {[%emt 0:11:42]} Nf4 {[%emt 0:13:01]} 22. Bf1 {[%emt 0:03:20]} Ra8 {[%emt 0:01:19]} 23. Rb1 {[%emt 0:04:13]} Rfb8 {[%emt 0:02:46]} 24. d5 {[%emt 0:11:28]} Ra5 {[%emt 0:00:42]} 25. c4 {[%emt 0:00:40]} Ra7 {[%emt 0:00:51]} 26. Rg4 {[%emt 0:02:17]} Kh7 {[%emt 0:02:53]} 27. Rg1 {[%emt 0:05:11]} Kh8 {[%emt 0:00:20]} 28. Rc1 {[%emt 0:00:13]} Kh7 {[%emt 0:00:44]} 29. b4 {[%emt 0:01:58]} Ra2 {[%emt 0:03:05]} 30. c5 {[%emt 0:01:54]} bxc5 {[%emt 0:00:06]} 31. bxc5 {[%emt 0:00:04]} dxc5 {[%emt 0:00:21]} 32. Rxc5 {[%emt 0:00:09]} Rbb2 {[%emt 0:00:58]} 33. Rc6 {[%emt 0:00:29]} Qd8 {[%emt 0:00:11]} 34. Bc4 {[%emt 0:02:41]} Ra8 {[%emt 0:00:50]} 35. Bxf4 {[%emt 0:00:24]} exf4 {[%emt 0:03:11]} 36. Qd4 {[%emt 0:00:02]} Qg5 {[%emt 0:00:01]} 37. Qxb2 {[%emt 0:00:33]} 1-0

[Event "49th Rilton Cup 2019-20"]
[Site "Stockholm"]
[Date "2019.12.28"]
[Round "2.21"]
[White "Acikel, Mert"]
[Black "Pantzar, Milton"]
[Result "1/2-1/2"]
[ECO "C55"]
[WhiteElo "2094"]
[BlackElo "2410"]
[Annotator "NA"]
[PlyCount "53"]
[EventDate "2019.12.27"]
[EventType "swiss"]
[EventCountry "SWE"]
[SourceTitle "playchess.com"]
[Source "ChessBase"]
[SourceQuality "1"]
[TimeControl "40/5400+30:1800+30"]

1. e4 {[%emt 0:00:00]} e5 {[%emt 0:00:00]} 2. Nf3 {[%emt 0:00:00]} Nc6 {[%emt 0:00:00]} 3. Bc4 {[%emt 0:00:11]} Nf6 {[%emt 0:00:00]} 4. d3 {[%emt 0:01:11]} h6 {[%emt 0:00:11]} 5. O-O {[%emt 0:00:49]} d6 {[%emt 0:00:15]} 6. a4 {[%emt 0:01:52]} g5 {[%emt 0:00:59]} 7. c3 {[%emt 0:03:43]} Bg7 {[%emt 0:00:48]} 8. Re1 {[%emt 0:04:43]} O-O {[%emt 0:02:38]} 9. a5 {[%emt 0:07:29]} Ne7 {[%emt 0:07:59]} 10. Nbd2 {[%emt 0:10:53]} Ng6 {[%emt 0:03:06]} 11. Nf1 {[%emt 0:01:13]} c6 {[%emt 0:03:25]} 12. Bb3 {[%emt 0:04:56]} Re8 {[%emt 0:10:19]} 13. Ng3 {[%emt 0:07:53]} d5 {[%emt 0:09:30]} 14. Nf5 {[%emt 0:12:39]} Bf8 {[%emt 0:08:18]} 15. Bc2 {[%emt 0:01:53]} Be6 {[%emt 0:03:02]} 16. h3 {[%emt 0:06:21]} Qd7 {[%emt 0:05:26]} 17. g4 {[%emt 0:00:55]} Rad8 {[%emt 0:09:44]} 18. Be3 {[%emt 0:10:01]} Qc8 {[%emt 0:12:49]} 19. Qe2 {[%emt 0:03:23]} Bxf5 {[%emt 0:04:31]} 20. gxf5 {[%emt 0:03:07]} Nf4 {[%emt 0:00:10]} 21. Bxf4 {[%emt 0:00:37]} exf4 {[%emt 0:03:11]} 22. Qf1 {[%emt 0:00:30]} Nh7 {[%emt 0:06:00]} 23. Qg2 {[%emt 0:01:28]} Kh8 {[%emt 0:00:21]} 24. Qg4 {[%emt 0:06:01]} Nf6 {[%emt 0:02:08]} 25. Qg2 {[%emt 0:00:16]} Nh7 {[%emt 0:00:36]} 26. Qg4 {[%emt 0:01:07]} Nf6 {[%emt 0:03:51]} 27. Qg2 {[%emt 0:00:04]} 1/2-1/2

[Event "49th Rilton Cup 2019-20"]
[Site "Stockholm"]
[Date "2019.12.28"]
[Round "2.22"]
[White "Volkov, Sergey"]
[Black "Douriet Duany, Alexis"]
[Result "1-0"]
[ECO "A57"]
[WhiteElo "2578"]
[BlackElo "2198"]
[Annotator "RC"]
[PlyCount "79"]
[EventDate "2019.12.27"]
[EventType "swiss"]
[EventCountry "SWE"]
[SourceTitle "playchess.com"]
[Source "ChessBase"]
[SourceQuality "1"]
[TimeControl "40/5400+30:1800+30"]

1. d4 {[%emt 0:00:00]} Nf6 {[%emt 0:01:59]} 2. c4 {[%emt 0:00:00]} c5 {[%emt 0:00:01]} 3. d5 {[%emt 0:00:20]} b5 {[%emt 0:00:02]} 4. Nf3 {[%emt 0:00:37]} g6 {[%emt 0:02:50]} 5. cxb5 {[%emt 0:00:17]} a6 {[%emt 0:00:45]} 6. e3 {[%emt 0:00:14]} d6 {[%emt 0:00:15]} 7. Nc3 {[%emt 0:00:25]} Bg7 {[%emt 0:00:14]} 8. a4 {[%emt 0:00:19]} O-O {[%emt 0:00:21]} 9. e4 {[%emt 0:00:23]} axb5 {[%emt 0:08:57]} 10. Bxb5 {[%emt 0:00:50]} Na6 {[%emt 0:04:01]} 11. O-O {[%emt 0:02:02]} Nb4 {[%emt 0:00:27]} 12. Bf4 {[%emt 0:09:06]} Bg4 {[%emt 0:04:23]} 13. Rc1 {[%emt 0:02:47]} Nh5 {[%emt 0:10:21]} 14. Be3 {[%emt 0:04:20]} f5 {[%emt 0:00:26]} 15. h3 {[%emt 0:00:13]} Bxf3 {[%emt 0:02:51]} 16. Qxf3 {[%emt 0:01:56]} f4 {[%emt 0:00:18]} 17. Bd2 {[%emt 0:00:08]} Be5 {[%emt 0:05:47]} 18. Nd1 {[%emt 0:07:10]} Rb8 {[%emt 0:05:10]} 19. Rc4 {[%emt 0:06:52]} Na2 {[%emt 0:15:09]} 20. Nc3 {[%emt 0:03:55]} Nb4 {[%emt 0:02:49]} 21. Ne2 {[%emt 0:02:09]} Bxb2 {[%emt 0:11:10]} 22. Bxb4 {[%emt 0:00:31]} cxb4 {[%emt 0:01:23]} 23. Rxb4 {[%emt 0:00:10]} Be5 {[%emt 0:00:35]} 24. Nd4 {[%emt 0:00:31]} Bxd4 {[%emt 0:00:51]} 25. Rxd4 {[%emt 0:00:34]} Qb6 {[%emt 0:00:24]} 26. Rc4 {[%emt 0:01:21]} Qa5 {[%emt 0:04:39]} 27. Rfc1 {[%emt 0:03:02]} Nf6 {[%emt 0:01:20]} 28. Qc3 {[%emt 0:06:01]} Rxb5 {[%emt 0:01:11]} 29. axb5 {[%emt 0:00:19]} Qxb5 {[%emt 0:00:01]} 30. Rc8 {[%emt 0:04:14]} Qe2 {[%emt 0:01:01]} 31. Rxf8+ {[%emt 0:02:16]} Kxf8 {[%emt 0:00:49]} 32. Re1 {[%emt 0:00:32]} Qa6 {[%emt 0:01:35]} 33. e5 {[%emt 0:08:57]} Nxd5 {[%emt 0:00:42]} 34. Qd4 {[%emt 0:00:27]} Qa5 {[%emt 0:00:34]} 35. Rd1 {[%emt 0:00:47]} Nc3 {[%emt 0:00:42]} 36. Qxf4+ {[%emt 0:00:53]} Kg7 {[%emt 0:00:26]} 37. Re1 {[%emt 0:01:00]} d5 {[%emt 0:03:37]} 38. e6 {[%emt 0:02:26]} Qc5 {[%emt 0:00:02]} 39. Qf7+ {[%emt 0:02:01]} Kh6 {[%emt 0:00:34]} 40. Qf8+ {[%emt 0:00:12]} 1-0

[Event "49th Rilton Cup 2019-20"]
[Site "Stockholm"]
[Date "2019.12.28"]
[Round "2.23"]
[White "Ionov, Sergey"]
[Black "Furhoff, Johan"]
[Result "1-0"]
[ECO "D00"]
[WhiteElo "2521"]
[BlackElo "2327"]
[Annotator "ChessBase"]
[PlyCount "89"]
[EventDate "2019.12.27"]
[EventType "swiss"]
[EventCountry "SWE"]
[SourceTitle "playchess.com"]
[Source "ChessBase"]
[SourceQuality "1"]
[TimeControl "40/5400+30:1800+30"]

1. d4 {[%emt 0:00:00]} d5 {[%emt 0:00:00]} 2. Bf4 {[%emt 0:00:30]} Nf6 {[%emt 0:01:01]} 3. e3 {[%emt 0:00:30]} c5 {[%emt 0:04:01]} 4. c3 {[%emt 0:01:25]} Qb6 {[%emt 0:00:43]} 5. Qb3 {[%emt 0:02:21]} Nc6 {[%emt 0:02:03]} 6. Nd2 {[%emt 0:00:55]} Bf5 {[%emt 0:08:14]} 7. dxc5 {[%emt 0:04:16]} Qxb3 {[%emt 0:01:00]} 8. axb3 {[%emt 0:00:30]} e5 {[%emt 0:00:34]} 9. Bg3 {[%emt 0:00:30]} Bxc5 {[%emt 0:00:41]} 10. Ngf3 {[%emt 0:13:53]} Nd7 {[%emt 0:04:40]} 11. b4 {[%emt 0:02:38]} Bd6 {[%emt 0:11:44]} 12. Be2 {[%emt 0:20:02]} O-O {[%emt 0:11:32]} 13. O-O {[%emt 0:04:01]} f6 {[%emt 0:12:13]} 14. Nd4 {[%emt 0:12:48]} Bg6 {[%emt 0:02:03]} 15. Nxc6 {[%emt 0:13:26]} bxc6 {[%emt 0:00:30]} 16. Ra6 {[%emt 0:00:30]} Rfc8 {[%emt 0:09:17]} 17. Rfa1 {[%emt 0:04:43]} Rc7 {[%emt 0:00:30]} 18. f3 {[%emt 0:05:05]} Nb8 {[%emt 0:01:27]} 19. R6a5 {[%emt 0:01:15]} Rb7 {[%emt 0:03:29]} 20. e4 {[%emt 0:04:13]} Bc7 {[%emt 0:01:57]} 21. R5a3 {[%emt 0:00:30]} Bb6+ {[%emt 0:05:20]} 22. Bf2 {[%emt 0:00:30]} Nd7 {[%emt 0:00:30]} 23. Bxb6 {[%emt 0:01:53]} Nxb6 {[%emt 0:00:30]} 24. Nb3 {[%emt 0:01:33]} Nd7 {[%emt 0:03:10]} 25. Ra6 {[%emt 0:01:29]} dxe4 {[%emt 0:00:34]} 26. Na5 {[%emt 0:01:12]} Rb6 {[%emt 0:01:21]} 27. Nxc6 {[%emt 0:00:30]} exf3 {[%emt 0:00:30]} 28. gxf3 {[%emt 0:00:30]} Re8 {[%emt 0:07:00]} 29. Rxa7 {[%emt 0:00:36]} Rxc6 {[%emt 0:00:39]} 30. Rxd7 {[%emt 0:00:30]} Bf5 {[%emt 0:00:30]} 31. Rd2 {[%emt 0:01:01]} Rc7 {[%emt 0:00:30]} 32. Rad1 {[%emt 0:00:41]} e4 {[%emt 0:00:30]} 33. Rd8 {[%emt 0:00:48]} Kf7 {[%emt 0:00:30]} 34. Rxe8 {[%emt 0:00:30]} Kxe8 {[%emt 0:00:30]} 35. Kf2 {[%emt 0:00:30]} exf3 {[%emt 0:01:04]} 36. Bxf3 {[%emt 0:00:30]} Bd7 {[%emt 0:00:30]} 37. Rd4 {[%emt 0:00:30]} Ra7 {[%emt 0:00:30]} 38. Ke3 {[%emt 0:00:30]} Ra2 {[%emt 0:00:30]} 39. Rd2 {[%emt 0:00:30]} Ke7 {[%emt 0:00:30]} 40. Bd5 {[%emt 0:00:42]} Ra1 {[%emt 0:00:30]} 41. Kd4 {[%emt 0:30:30]} Kd6 {[%emt 0:30:55]} 42. c4 {[%emt 0:00:38]} Rf1 {[%emt 0:00:30]} 43. b5 {[%emt 0:00:47]} Rf4+ {[%emt 0:00:30]} 44. Ke3 {[%emt 0:00:37]} Ke5 {[%emt 0:01:25]} 45. b6 {[%emt 0:00:30] Kxd5 Ke4+} 1-0

[Event "49th Rilton Cup 2019-20"]
[Site "Stockholm"]
[Date "2019.12.28"]
[Round "2.24"]
[White "Nesterov, Arseniy"]
[Black "Chernyak, Viktoria"]
[Result "1-0"]
[ECO "D52"]
[WhiteElo "2482"]
[BlackElo "2284"]
[Annotator "ChessBase"]
[PlyCount "53"]
[EventDate "2019.12.27"]
[EventType "swiss"]
[EventCountry "SWE"]
[SourceTitle "playchess.com"]
[Source "ChessBase"]
[SourceQuality "1"]
[TimeControl "40/5400+30:1800+30"]

1. d4 {[%emt 0:00:00]} d5 {[%emt 0:00:00]} 2. c4 {[%emt 0:00:06]} c6 {[%emt 0:00:00]} 3. Nf3 {[%emt 0:00:46]} Nf6 {[%emt 0:00:00]} 4. Nc3 {[%emt 0:01:11]} e6 {[%emt 0:03:11]} 5. Bg5 {[%emt 0:03:39]} Nbd7 {[%emt 0:05:28]} 6. e3 {[%emt 0:00:30]} Be7 {[%emt 0:02:39]} 7. Bd3 {[%emt 0:05:10]} dxc4 {[%emt 0:01:45]} 8. Bxc4 {[%emt 0:00:06]} b5 {[%emt 0:00:04]} 9. Be2 {[%emt 0:07:50]} a6 {[%emt 0:03:44]} 10. O-O {[%emt 0:11:19]} O-O {[%emt 0:00:30]} 11. Bxf6 {[%emt 0:04:00]} Nxf6 {[%emt 0:01:22]} 12. Ne5 {[%emt 0:00:20]} Bb7 {[%emt 0:00:36]} 13. Nd3 {[%emt 0:00:35]} a5 {[%emt 0:05:54]} 14. a3 {[%emt 0:03:22]} Bd6 {[%emt 0:12:12]} 15. Rc1 {[%emt 0:06:57]} Qe7 {[%emt 0:01:10]} 16. f4 {[%emt 0:12:09]} Rfd8 {[%emt 0:02:34]} 17. Bf3 {[%emt 0:07:00]} Nd5 {[%emt 0:03:51]} 18. Qd2 {[%emt 0:02:58]} Nb6 {[%emt 0:04:46]} 19. Ne4 {[%emt 0:01:01]} Nc4 {[%emt 0:11:52]} 20. Qe2 {[%emt 0:00:22]} Bb8 {[%emt 0:00:20]} 21. a4 {[%emt 0:00:37]} Nb6 {[%emt 0:02:59]} 22. Ndc5 {[%emt 0:05:33]} Nxa4 {[%emt 0:04:58]} 23. Nxb7 {[%emt 0:00:31]} Qxb7 {[%emt 0:02:11]} 24. Rxc6 {[%emt 0:00:20]} Ra6 {[%emt 0:06:44]} 25. Nd6 {[%emt 0:03:33]} Qa8 {[%emt 0:12:17]} 26. Rc8 {[%emt 0:00:45]} Rxc8 {[%emt 0:00:16]} 27. Nxc8 {[%emt 0:00:14]} 1-0